bitfinex-derivatives/quotes_SOLF0:USTF0_20260310
["timestamp","ask_amount","ask_price","bid_price","bid_amount"]
[1773186408227,9.21943097,85.639,85.604,7.87820138]
[1773186408523,7.24340767,85.637,85.604,7.87820138]
[1773186408823,9.21943097,85.636,85.604,7.87820138]
[1773186409032,7.24340767,85.634,85.603,10.513]
[1773186409214,7.24340767,85.632,85.596,10.513]
[1773186409419,9.21943097,85.631,85.596,10.513]
[1773186409619,12.71071221,85.63,85.596,10.513]
[1773186409818,9.21943097,85.629,85.596,17.83387535]
[1773186410023,3.49128124,85.63,85.596,17.83387535]
[1773186410420,7.33407768,85.631,85.596,17.83387535]
[1773186410620,9.22101195,85.63,85.596,17.83387535]
[1773186410821,7.33407768,85.631,85.603,10.513]
[1773186411118,9.22101195,85.63,85.603,10.513]
[1773186411315,7.33407768,85.631,85.603,10.513]
[1773186411517,7.33407768,85.629,85.596,7.32087535]
[1773186415324,7.33407768,85.629,85.596,17.83387535]
[1773186419527,7.33407768,85.629,85.599,10.513]
[1773186426329,7.33407768,85.646,85.608,17.83287535]
[1773186426637,16.5529189,85.645,85.609,7.32087535]
[1773186426927,9.21884122,85.644,85.609,7.32087535]
[1773186427133,9.21884122,85.643,85.609,7.32087535]
[1773186427333,9.21884122,85.642,85.609,7.32087535]
[1773186427535,9.21884122,85.641,85.609,7.32087535]
[1773186427834,9.21884122,85.64,85.609,7.32087535]
[1773186428134,7.33407768,85.645,85.613,7.32087535]
[1773186428526,3.49128124,85.65,85.613,7.32087535]
[1773186428728,7.33407768,85.656,85.616,7.32087535]
[1773186428932,9.21164522,85.655,85.616,7.32087535]
[1773186429133,9.21164522,85.654,85.616,7.32087535]
[1773186429336,9.21164522,85.653,85.616,7.32087535]
[1773186429532,10.82535892,85.66,85.616,7.32087535]
[1773186429732,9.20803078,85.659,85.616,7.32087535]
[1773186429930,9.20803078,85.658,85.616,7.32087535]
[1773186430127,9.20803078,85.657,85.616,7.32087535]
[1773186430327,9.20803078,85.656,85.626,10.51]
[1773186430627,9.20803078,85.655,85.626,10.51]
[1773186430826,9.20803078,85.654,85.626,10.51]
[1773186431031,10.82535892,85.66,85.627,7.32087535]
[1773186431232,9.20221228,85.659,85.627,7.32087535]
[1773186431542,9.20221228,85.658,85.627,7.32087535]
[1773186431736,9.20221228,85.657,85.627,7.32087535]
[1773186431938,9.20221228,85.656,85.627,7.32087535]
[1773186432134,10.82535892,85.66,85.627,7.32087535]
[1773186432339,9.19995281,85.659,85.627,7.32087535]
[1773186432535,7.33407768,85.657,85.627,7.32087535]
[1773186432738,7.33407768,85.655,85.619,10.511]
[1773186434239,7.33407768,85.649,85.619,10.511]
[1773186434440,7.33407768,85.649,85.617,7.32087535]
[1773186434640,7.33407768,85.649,85.613,10.511]
[1773186434842,7.33407768,85.639,85.581,7.32087535]
[1773186435037,7.33407768,85.652,85.591,7.32087535]
[1773186435238,7.33407768,85.649,85.591,7.32087535]
[1773186435534,7.33407768,85.647,85.591,7.32087535]
[1773186435935,7.33407768,85.645,85.591,7.32087535]
[1773186436338,7.33407768,85.645,85.608,10.512]
[1773186437740,7.33407768,85.645,85.608,17.83287535]
[1773186438142,7.33407768,85.645,85.614,10.511]
[1773186439940,7.33407768,85.645,85.614,17.97333329]
[1773186440142,7.63185046,85.659,85.617,7.46233329]
[1773186440347,7.63185046,85.657,85.617,7.46233329]
[1773186440541,16.82957964,85.656,85.617,7.46233329]
[1773186440742,7.63185046,85.656,85.617,7.46233329]
[1773186441438,7.63185046,85.656,85.618,17.97333329]
[1773186442943,7.63185046,85.656,85.619,7.46233329]
[1773186445145,7.63185046,85.656,85.62,17.97233329]
[1773186448247,3.49128124,85.64,85.601,7.46233329]
[1773186448941,7.63185046,85.639,85.601,7.46233329]
[1773186449449,7.63185046,85.639,85.602,17.97533329]
[1773186449649,7.63185046,85.639,85.603,7.46233329]
[1773186449946,3.49128124,85.65,85.614,7.46233329]
[1773186450146,7.63185046,85.649,85.614,7.46233329]
[1773186451050,7.63185046,85.649,85.615,10.511]
[1773186452247,7.63185046,85.649,85.573,21.033]
[1773186452248,7.63185046,85.649,85.618,7.46233329]
[1773186452948,3.49128124,85.66,85.624,7.46233329]
[1773186453154,7.63185046,85.658,85.624,7.46233329]
[1773186454546,3.49128124,85.65,85.624,7.46233329]
[1773186455955,7.63185046,85.658,85.624,7.46233329]
[1773186457157,7.63185046,85.658,85.621,10.51]
[1773186457359,3.49128124,85.65,85.621,10.51]
[1773186458457,7.63185046,85.658,85.623,7.46233329]
[1773186458755,3.49128124,85.65,85.613,7.46233329]
[1773186458952,7.63185046,85.649,85.613,7.46233329]
[1773186459656,7.63185046,85.649,85.619,10.511]
[1773186464058,7.63185046,85.649,85.601,7.46233329]
[1773186464259,10.82288014,85.673,85.601,7.46233329]
[1773186464260,7.63185046,85.639,85.601,7.46233329]
[1773186465566,7.63185046,85.639,85.602,7.46233329]
[1773186465962,7.63185046,85.637,85.602,7.46233329]
[1773186466464,7.63185046,85.637,85.604,10.512]
[1773186467359,3.49035335,85.64,85.605,7.46233329]
[1773186470056,7.33222944,85.634,85.605,7.46233329]
[1773186474760,7.33222944,85.634,85.531,46.72]
[1773186474761,3.49035335,85.65,85.607,7.50986363]
[1773186474967,3.49035335,85.66,85.611,7.50986363]
[1773186475262,7.33222944,85.658,85.611,7.50986363]
[1773186475461,16.54201538,85.657,85.611,7.50986363]
[1773186475659,9.20978594,85.656,85.611,7.50986363]
[1773186475858,9.20978594,85.655,85.611,7.50986363]
[1773186476060,9.20978594,85.654,85.611,7.50986363]
[1773186476267,9.20978594,85.653,85.611,7.50986363]
[1773186476469,9.20978594,85.652,85.623,10.51]
[1773186476666,7.33222944,85.657,85.623,10.51]
[1773186476967,9.21003326,85.656,85.623,10.51]
[1773186477166,9.21003326,85.655,85.623,10.51]
[1773186477366,9.21003326,85.654,85.623,10.51]
[1773186477568,9.21003326,85.653,85.623,10.51]
[1773186477768,9.21003326,85.652,85.623,10.51]
[1773186477968,7.33222944,85.657,85.623,10.51]
[1773186478170,9.21001287,85.656,85.623,10.51]
[1773186478468,9.21001287,85.655,85.623,10.51]
[1773186478665,9.21001287,85.654,85.623,10.51]
[1773186478863,9.21001287,85.653,85.623,10.51]
[1773186479061,9.21001287,85.652,85.623,10.51]
[1773186479266,7.33222944,85.657,85.623,10.51]
[1773186479461,9.20994629,85.656,85.623,10.51]
[1773186479664,7.33222944,85.657,85.623,10.51]
[1773186479665,9.20994629,85.655,85.623,10.51]
[1773186479866,9.20994629,85.654,85.627,10.51]
[1773186480064,3.49035335,85.66,85.628,7.50986363]
[1773186481466,7.33222944,85.667,85.631,7.50986363]
[1773186481668,9.20760453,85.666,85.631,7.50986363]
[1773186481867,7.33222944,85.667,85.631,7.50986363]
[1773186483474,7.33222944,85.667,85.632,10.509]
[1773186487680,7.33222944,85.667,85.638,7.50986363]
[1773186487880,7.33222944,85.677,85.638,7.50986363]
[1773186488079,7.33222944,85.675,85.638,7.50986363]
[1773186488279,3.49035335,85.67,85.638,7.50986363]
[1773186488684,10.82258279,85.67,85.638,7.50986363]
[1773186489383,10.82258279,85.67,85.645,10.507]
[1773186492185,7.33222944,85.67,85.645,10.507]
[1773186492383,10.82258279,85.67,85.645,10.507]
[1773186493580,7.33222944,85.669,85.645,10.507]
[1773186493784,7.33222944,85.696,85.66,3.49035335]
[1773186493989,7.33222944,85.707,85.661,7.50986363]
[1773186495784,188.43722694,85.713,85.675,7.50986363]
[1773186496790,10.82258279,85.72,85.675,7.50986363]
[1773186497389,10.82258279,85.72,85.677,7.50986363]
[1773186497693,7.33222944,85.719,85.677,7.50986363]
[1773186498693,7.33222944,85.719,85.68,7.50986363]
[1773186499895,18.04809582,85.718,85.68,7.50986363]
[1773186500088,7.54909582,85.717,85.68,7.50986363]
[1773186500791,10.499,85.714,85.68,7.50986363]
[1773186500991,7.54909582,85.713,85.672,10.504]
[1773186501295,7.54909582,85.699,85.662,7.62319518]
[1773186502394,7.54909582,85.699,85.664,7.62319518]
[1773186503700,7.54909582,85.696,85.655,7.62319518]
[1773186504499,7.54909582,85.696,85.662,7.62319518]
[1773186504997,7.54909582,85.709,85.662,7.62319518]
[1773186505802,10.499,85.711,85.672,7.62319518]
[1773186506301,3.49035335,85.71,85.672,7.62319518]
[1773186506502,3.49035335,85.72,85.676,7.62319518]
[1773186506701,7.54909582,85.719,85.676,7.62319518]
[1773186507601,7.54909582,85.719,85.68,18.12619518]
[1773186511006,7.54909582,85.719,85.681,7.62319518]
[1773186512608,3.49035335,85.69,85.651,7.62319518]
[1773186512812,7.54909582,85.689,85.651,7.62319518]
[1773186513206,3.49035335,85.67,85.637,7.62319518]
[1773186513406,7.54909582,85.669,85.636,10.508]
[1773186513704,7.54909582,85.669,85.625,7.62319518]
[1773186513909,3.49035335,85.67,85.625,7.62319518]
[1773186514110,3.49035335,85.68,85.643,10.508]
[1773186514308,11.03944917,85.68,85.643,10.508]
[1773186514502,7.54909582,85.679,85.643,10.508]
[1773186514810,3.49035335,85.67,85.637,7.62319518]
[1773186518309,10.504,85.678,85.637,7.62319518]
[1773186518513,7.54909582,85.677,85.637,7.62319518]
[1773186520413,3.49035335,85.67,85.637,7.62319518]
[1773186523217,7.54909582,85.677,85.642,18.13119518]
[1773186525212,7.54909582,85.677,85.642,7.62319518]
[1773186525417,3.49035335,85.67,85.642,7.62319518]
[1773186526509,7.54909582,85.677,85.642,7.62319518]
[1773186527721,7.54814703,85.649,85.601,7.19754833]
[1773186528012,10.82288014,85.71,85.534,178.0]
[1773186528013,7.54814703,85.609,85.534,7.19754833]
[1773186528217,35.03,85.645,85.531,7.19754833]
[1773186528415,3.48704469,85.62,85.571,7.19754833]
[1773186528619,35.03,85.652,85.571,7.19754833]
[1773186528620,3.48704469,85.63,85.571,7.19754833]
[1773186529414,10.508,85.637,85.583,10.515]
[1773186529617,3.48704469,85.65,85.591,7.24709435]
[1773186530311,7.67955134,85.649,85.6,3.48704469]
[1773186536324,7.67955134,85.648,85.6,3.48704469]
[1773186540230,7.67955134,85.648,85.6,14.00004469]
[1773186541939,7.67955134,85.648,85.601,7.24709435]
[1773186542236,7.67955134,85.648,85.602,10.513]
[1773186542633,7.67955134,85.648,85.602,17.76009435]
[1773186543035,7.67955134,85.648,85.603,7.24709435]
[1773186544550,7.67955134,85.648,85.61,3.48704469]
[1773186545048,7.67955134,85.66,85.62,3.48704469]
[1773186545347,7.67955134,85.66,85.62,10.73413904]
[1773186546346,7.67955134,85.66,85.621,10.51]
[1773186551451,7.67955134,85.685,85.65,3.48704469]
[1773186552349,7.67955134,85.685,85.653,10.506]
[1773186556050,7.67955134,85.696,85.653,10.506]
[1773186556749,7.67955134,85.708,85.667,7.24709435]
[1773186557052,7.67955134,85.699,85.643,7.24709435]
[1773186557257,7.67955134,85.675,85.633,10.509]
[1773186558050,10.503,85.685,85.64,7.24709435]
[1773186558246,18.18255134,85.685,85.64,7.24709435]
[1773186558545,7.67955134,85.684,85.64,7.24709435]
[1773186559355,10.503,85.682,85.64,7.24709435]
[1773186559651,7.91219095,85.681,85.64,7.24709435]
[1773186561557,7.91219095,85.678,85.64,7.24709435]
[1773186562454,18.41619095,85.677,85.64,7.24709435]
[1773186564358,7.91219095,85.671,85.632,10.509]
[1773186565360,7.91219095,85.663,85.62,10.51]
[1773186566460,7.91219095,85.66,85.62,10.51]
[1773186566655,7.91219095,85.66,85.616,7.29934191]
[1773186566858,7.91219095,85.649,85.605,7.29934191]
[1773186569467,7.91219095,85.646,85.605,7.29934191]
[1773186572966,10.506,85.654,85.621,7.29934191]
[1773186573470,3.48704469,85.65,85.605,7.29934191]
[1773186573765,7.91219095,85.65,85.605,7.29934191]
[1773186574265,10.508,85.644,85.605,7.29934191]
[1773186574871,7.91219095,85.65,85.607,7.29934191]
[1773186575272,7.91219095,85.65,85.61,10.7863866]
[1773186575571,10.507,85.649,85.611,7.29934191]
[1773186576176,7.91219095,85.65,85.611,7.29934191]
[1773186576177,10.508,85.642,85.611,7.29934191]
[1773186583974,7.91219095,85.641,85.6,3.48704469]
[1773186584180,7.91219095,85.651,85.601,7.29934191]
[1773186584679,7.91219095,85.651,85.611,7.29934191]
[1773186584883,7.91219095,85.663,85.611,7.29934191]
[1773186585080,7.91219095,85.663,85.621,7.29934191]
[1773186586484,10.505,85.662,85.621,7.29934191]
[1773186587981,18.24988634,85.662,85.621,7.29934191]
[1773186589979,7.74488634,85.662,85.625,7.52711341]
[1773186590581,10.506,85.655,85.625,7.52711341]
[1773186596083,10.506,85.661,85.625,7.52711341]
[1773186596284,7.74488634,85.662,85.625,7.52711341]
[1773186596591,7.84779289,85.678,85.625,7.52711341]
[1773186596792,7.84779289,85.676,85.625,7.52711341]
[1773186596992,18.35179289,85.671,85.632,10.509]
[1773186597195,7.84779289,85.67,85.632,10.509]
[1773186599594,10.505,85.669,85.632,10.509]
[1773186599992,18.35279289,85.669,85.632,10.509]
[1773186600493,18.35279289,85.669,85.633,7.52711341]
[1773186601297,10.505,85.663,85.633,7.52711341]
[1773186606501,7.84779289,85.681,85.633,7.52711341]
[1773186606699,7.84779289,85.679,85.633,7.52711341]
[1773186606898,17.01939051,85.678,85.633,7.52711341]
[1773186607099,9.17159762,85.677,85.633,7.52711341]
[1773186607298,9.17159762,85.676,85.633,7.52711341]
[1773186607499,9.17159762,85.675,85.639,7.52711341]
[1773186607800,9.17159762,85.675,85.638,10.508]
[1773186607801,7.84779289,85.689,85.641,7.52711341]
[1773186607995,9.17186037,85.688,85.654,7.52711341]
[1773186608191,7.84779289,85.689,85.654,7.52711341]
[1773186609297,7.84779289,85.699,85.654,7.52711341]
[1773186609501,9.1639847,85.698,85.662,10.505]
[1773186609700,9.1639847,85.697,85.662,10.505]
[1773186610001,9.1639847,85.696,85.662,10.505]
[1773186610206,9.1639847,85.695,85.662,10.505]
[1773186610502,9.1639847,85.694,85.662,10.505]
[1773186610801,7.84779289,85.699,85.662,10.505]
[1773186611099,9.16164232,85.698,85.662,10.505]
[1773186611300,7.84779289,85.699,85.662,10.505]
[1773186611301,9.16164232,85.697,85.662,10.505]
[1773186611503,9.16164232,85.696,85.662,18.03211341]
[1773186611698,7.84779289,85.699,85.662,18.03211341]
[1773186613303,7.84779289,85.699,85.663,7.52711341]
[1773186613502,7.84779289,85.709,85.665,7.52711341]
[1773186613704,3.48840531,85.71,85.665,7.52711341]
[1773186613705,7.84779289,85.707,85.665,7.52711341]
[1773186613904,9.15048673,85.706,85.665,7.52711341]
[1773186614105,7.84779289,85.707,85.665,7.52711341]
[1773186614406,7.84779289,85.707,85.668,7.52711341]
[1773186614601,7.84779289,85.719,85.668,7.52711341]
[1773186614902,10.88089376,85.729,85.6,163.541]
[1773186614903,7.84779289,85.729,85.69,3.48840531]
[1773186615205,7.84779289,85.727,85.69,7.52711341]
[1773186622302,7.84779289,85.727,85.692,7.4885658]
[1773186622704,7.94321772,85.738,85.692,7.4885658]
[1773186622909,7.94321772,85.736,85.694,7.4885658]
[1773186623912,18.44021772,85.734,85.694,7.4885658]
[1773186624709,7.94321772,85.733,85.694,7.4885658]
[1773186625812,7.94321772,85.731,85.694,7.4885658]
[1773186628815,7.94321772,85.731,85.696,7.4885658]
[1773186629010,7.94321772,85.75,85.71,3.48840531]
[1773186629210,7.94321772,85.75,85.711,7.4885658]
[1773186629509,7.94321772,85.747,85.711,7.4885658]
[1773186630413,7.94321772,85.746,85.711,7.4885658]
[1773186631311,7.94321772,85.746,85.712,10.499]
[1773186632116,7.94321772,85.746,85.711,7.4885658]
[1773186634917,7.94321772,85.746,85.711,17.9875658]
[1773186636819,7.94321772,85.744,85.711,7.4885658]
[1773186637812,7.94321772,85.739,85.654,7.4885658]
[1773186638011,7.94321772,85.739,85.69,10.97697111]
[1773186638218,7.94321772,85.739,85.691,7.4885658]
[1773186639318,18.43921772,85.739,85.696,10.501]
[1773186639519,7.94321772,85.738,85.697,7.4885658]
[1773186640417,7.94321772,85.735,85.697,7.4885658]
[1773186641422,10.497,85.732,85.697,7.4885658]
[1773186642217,18.44021772,85.732,85.697,7.4885658]
[1773186642517,7.94321772,85.731,85.697,7.4885658]
[1773186642721,7.94321772,85.731,85.59,36.27242468]
[1773186642722,3.48840531,85.72,85.669,7.4885658]
[1773186642915,7.94321772,85.729,85.681,7.4885658]
[1773186643313,7.94321772,85.729,85.69,3.48840531]
[1773186643516,7.94321772,85.737,85.692,7.4885658]
[1773186644521,7.94321772,85.737,85.698,7.4885658]
[1773186644728,7.94321772,85.737,85.701,7.4885658]
[1773186645026,35.04,85.768,85.701,7.4885658]
[1773186645325,7.94321772,85.741,85.701,7.4885658]
[1773186646325,10.496,85.738,85.701,7.4885658]
[1773186647520,7.41674842,85.735,85.701,7.4885658]
[1773186648428,10.497,85.734,85.701,7.4885658]
[1773186648622,7.41674842,85.751,85.709,10.5]
[1773186648827,7.41674842,85.739,85.699,7.40339752]
[1773186650427,7.92824098,85.753,85.71,7.27700917]
[1773186651330,10.494,85.752,85.71,7.27700917]
[1773186652127,7.92824098,85.749,85.71,7.27700917]
[1773186653429,7.92824098,85.746,85.71,7.27700917]
[1773186653828,7.92824098,85.759,85.71,7.27700917]
[1773186654128,7.92824098,85.759,85.711,7.27700917]
[1773186654922,7.92824098,85.749,85.711,7.27700917]
[1773186655128,7.92824098,85.749,85.7,7.27700917]
[1773186655633,7.92824098,85.745,85.702,17.77700917]
[1773186655829,7.92824098,85.745,85.703,7.27700917]
[1773186656226,3.48239525,85.74,85.703,7.27700917]
[1773186656430,7.92824098,85.739,85.692,7.27700917]
[1773186657430,10.497,85.731,85.693,7.27700917]
[1773186659339,10.497,85.731,85.695,7.27700917]
[1773186661443,18.42424098,85.739,85.695,7.27700917]
[1773186662143,199.46410858,85.826,85.642,35.04]
[1773186662144,7.92824098,85.725,85.681,7.27700917]
[1773186663544,7.92824098,85.725,85.67,3.48239525]
[1773186663545,7.92824098,85.725,85.686,7.27700917]
[1773186664341,7.92824098,85.725,85.688,10.502]
[1773186665844,7.92824098,85.725,85.688,17.77900917]
[1773186666647,3.48239525,85.72,85.688,17.77900917]
[1773186668547,45.92089376,85.748,85.64,35.04]
[1773186668548,7.92824098,85.747,85.674,7.27700917]
[1773186668747,7.92824098,85.729,85.674,7.27700917]
[1773186669056,9.15470015,85.728,85.674,7.27700917]
[1773186669249,7.92824098,85.729,85.674,7.27700917]
[1773186669456,9.15454599,85.728,85.674,7.27700917]
[1773186669754,7.92824098,85.729,85.674,7.27700917]
[1773186669950,9.15454496,85.728,85.674,7.27700917]
[1773186670151,7.92824098,85.719,85.685,7.27700917]
[1773186671446,7.92824098,85.709,85.673,7.27700917]
[1773186671852,7.92824098,85.709,85.674,10.504]
[1773186672051,3.48239525,85.7,85.651,7.27700917]
[1773186672452,7.92824098,85.709,85.651,7.27700917]
[1773186673448,7.92824098,85.709,85.667,17.78200917]
[1773186673853,7.92824098,85.705,85.667,7.27700917]
[1773186674252,14.48168234,85.741,85.667,7.27700917]
[1773186674253,7.92824098,85.716,85.667,7.27700917]
[1773186674452,7.92824098,85.714,85.67,3.48239525]
[1773186674653,7.92824098,85.714,85.671,7.27700917]
[1773186674948,7.92824098,85.727,85.671,7.27700917]
[1773186675151,9.14610783,85.726,85.671,7.27700917]
[1773186675452,7.92824098,85.739,85.682,7.27700917]
[1773186675652,3.48239525,85.74,85.682,7.27700917]
[1773186675653,7.92824098,85.737,85.682,7.27700917]
[1773186675854,17.07207358,85.736,85.682,7.27700917]
[1773186676054,7.92824098,85.734,85.682,7.27700917]
[1773186676256,7.92824098,85.732,85.682,7.27700917]
[1773186676455,10.497,85.728,85.69,10.502]
[1773186677062,18.42524098,85.728,85.684,7.27700917]
[1773186678461,18.42524098,85.728,85.686,7.27700917]
[1773186678756,10.496,85.736,85.691,7.27700917]
[1773186680258,7.76340132,85.734,85.687,10.502]
[1773186680459,7.76340132,85.729,85.687,10.502]
[1773186680962,7.76340132,85.729,85.691,7.73053152]
[1773186682360,7.76340132,85.729,85.694,10.501]
[1773186687963,7.76340132,85.729,85.695,7.73053152]
[1773186688262,7.76340132,85.729,85.694,10.501]
[1773186688961,7.76340132,85.729,85.683,7.73053152]
[1773186689263,7.76340132,85.729,85.685,7.73053152]
[1773186690465,7.76340132,85.729,85.691,10.502]
[1773186694362,3.48239525,85.72,85.641,7.73053152]
[1773186694567,3.48239525,85.72,85.64,21.017]
[1773186694568,7.76340132,85.719,85.671,7.73053152]
[1773186694960,7.76340132,85.717,85.68,7.73053152]
[1773186695162,7.76340132,85.717,85.67,3.48239525]
[1773186695163,7.76340132,85.738,85.691,7.73053152]
[1773186695362,16.90973049,85.737,85.691,7.73053152]
[1773186695560,10.497,85.735,85.694,7.73053152]
[1773186696161,9.14740218,85.734,85.694,7.73053152]
[1773186696461,10.497,85.733,85.694,7.73053152]
[1773186698365,10.497,85.733,85.69,3.48239525]
[1773186698366,10.497,85.733,85.695,18.23153152]
[1773186698564,9.21748676,85.732,85.696,7.73053152]
[1773186698765,10.497,85.733,85.696,7.73053152]
[1773186699064,9.21748627,85.732,85.696,7.73053152]
[1773186699264,9.21967461,85.731,85.696,7.73053152]
[1773186699464,10.497,85.733,85.696,7.73053152]
[1773186699662,9.21967461,85.732,85.696,7.73053152]
[1773186699867,9.21967461,85.731,85.696,7.73053152]
[1773186700059,7.76340132,85.73,85.696,7.73053152]
[1773186707275,7.76340132,85.73,85.699,10.501]
[1773186720686,7.49626905,85.729,85.68,7.34553349]
[1773186720887,3.48278421,85.73,85.68,7.34553349]
[1773186720888,7.49626905,85.727,85.68,7.34553349]
[1773186721089,7.49626905,85.725,85.697,10.501]
[1773186721284,3.48278421,85.73,85.697,17.84653349]
[1773186721589,7.49626905,85.735,85.697,17.84653349]
[1773186721790,7.49626905,85.733,85.697,17.84653349]
[1773186722590,7.49626905,85.733,85.702,10.5]
[1773186724787,7.49626905,85.755,85.717,7.34553349]
[1773186725695,7.49626905,85.753,85.717,7.34553349]
[1773186726490,7.49626905,85.753,85.717,17.84453349]
[1773186730197,7.49626905,85.753,85.718,7.34553349]
[1773186733706,17.99026905,85.751,85.718,7.34553349]
[1773186734303,7.49626905,85.761,85.718,7.34553349]
[1773186734602,7.49626905,85.759,85.718,7.34553349]
[1773186735407,7.49626905,85.759,85.726,10.497]
[1773186736703,10.493,85.767,85.729,7.34553349]
[1773186737007,244.06421203,85.769,85.731,7.34553349]
[1773186738508,244.06421203,85.769,85.733,7.34553349]
[1773186738909,244.06421203,85.769,85.734,10.496]
[1773186739108,244.06421203,85.769,85.735,7.34553349]
[1773186739716,7.76502795,85.768,85.728,10.497]
[1773186741418,7.76502795,85.765,85.728,10.497]
[1773186741809,7.76502795,85.765,85.728,17.960961]
[1773186742114,7.76502795,85.765,85.733,10.497]
[1773186742817,7.76502795,85.765,85.668,35.04]
[1773186742818,244.06421203,85.769,85.746,7.463961]
[1773186743012,7.76502795,85.776,85.746,7.463961]
[1773186744616,3.48278421,85.79,85.705,21.001]
[1773186744617,7.76502795,85.786,85.751,7.463961]
[1773186745322,7.76502795,85.786,85.753,10.494]
[1773186746122,7.76502795,85.786,85.759,10.493]
[1773186746323,7.76502795,85.789,85.759,10.493]
[1773186748422,10.489,85.797,85.761,7.463961]
[1773186748625,7.76502795,85.799,85.761,7.463961]
[1773186756433,7.76502795,85.809,85.764,7.463961]
[1773186757331,7.76502795,85.805,85.769,10.492]
[1773186757830,7.76502795,85.799,85.741,7.463961]
[1773186758129,7.76502795,85.792,85.752,7.463961]
[1773186758631,7.76502795,85.809,85.764,10.493]
[1773186759233,7.76502795,85.803,85.764,10.493]
[1773186759934,7.76502795,85.832,85.771,7.463961]
[1773186760128,7.76502795,85.829,85.771,7.463961]
[1773186760523,7.76502795,85.819,85.779,10.491]
[1773186761430,7.76502795,85.819,85.779,17.954961]
[1773186762935,7.76502795,85.819,85.781,10.491]
[1773186764435,7.76502795,85.819,85.781,17.954961]
[1773186765340,7.76502795,85.809,85.77,7.463961]
[1773186765632,7.76502795,85.809,85.699,178.0]
[1773186765633,10.90055331,85.859,85.801,7.463961]
[1773186765839,7.76502795,85.87,85.84,3.48278421]
[1773186766139,7.76502795,85.87,85.821,7.463961]
[1773186767439,7.76502795,85.868,85.821,7.463961]
[1773186769338,7.86337902,85.866,85.821,7.463961]
[1773186773235,7.86337902,85.864,85.821,7.463961]
[1773186776232,7.86337902,85.862,85.821,7.463961]
[1773186778341,7.86337902,85.862,85.823,7.25685945]
[1773186778839,7.86337902,85.86,85.823,7.25685945]
[1773186779836,7.86337902,85.855,85.823,7.25685945]
[1773186780038,7.86337902,85.849,85.801,7.25685945]
[1773186781439,10.483,85.846,85.803,7.25685945]
[1773186781740,7.28110349,85.845,85.803,7.25685945]
[1773186781938,7.28110349,85.845,85.791,7.25685945]
[1773186782839,7.86337902,85.835,85.793,7.25685945]
[1773186783143,7.86337902,85.835,85.746,20.991]
[1773186783144,3.47173227,85.81,85.782,7.25685945]
[1773186783342,7.86337902,85.819,85.782,7.25685945]
[1773186784147,10.486,85.818,85.782,7.25685945]
[1773186785645,9.04040099,85.856,85.727,35.04]
[1773186785646,11.33511129,85.8,85.74,3.47173227]
[1773186785944,3.47173227,85.79,85.741,7.25685945]
[1773186786550,18.35237902,85.799,85.752,7.25685945]
[1773186786747,7.86337902,85.799,85.752,7.25685945]
[1773186786950,3.47173227,85.81,85.752,7.25685945]
[1773186787350,7.86337902,85.809,85.752,7.25685945]
[1773186788350,10.488,85.806,85.763,7.25685945]
[1773186790052,18.35137902,85.806,85.763,7.25685945]
[1773186791452,7.86337902,85.799,85.763,7.25685945]
[1773186792152,3.47173227,85.79,85.754,10.494]
[1773186793156,3.47173227,85.79,85.754,17.75085945]
[1773186794553,3.47173227,85.79,85.755,7.25685945]
[1773186794856,10.489,85.798,85.755,7.25685945]
[1773186795048,7.86337902,85.797,85.755,7.25685945]
[1773186796456,10.489,85.796,85.755,7.25685945]
[1773186798961,10.489,85.796,85.756,17.75085945]
[1773186799462,18.09358318,85.796,85.756,17.75085945]
[1773186799657,7.60458318,85.792,85.756,7.25685945]
[1773186799862,3.47173227,85.79,85.756,7.25685945]
[1773186801365,7.60458318,85.792,85.756,7.25685945]
[1773186805270,10.49,85.791,85.756,7.25685945]
[1773186808974,10.489,85.797,85.758,7.82724045]
[1773186809271,18.09358318,85.797,85.758,7.82724045]
[1773186809471,10.49,85.791,85.758,7.82724045]
[1773186809771,7.60458318,85.789,85.758,7.82724045]
[1773186810472,7.60458318,85.789,85.751,10.494]
[1773186810772,7.60458318,85.786,85.747,7.82724045]
[1773186810973,7.60458318,85.779,85.731,7.82724045]
[1773186811173,7.60458318,85.769,85.731,7.82724045]
[1773186811675,7.60458318,85.762,85.718,7.82724045]
[1773186811875,3.47173227,85.76,85.718,7.82724045]
[1773186813474,3.47173227,85.76,85.725,10.498]
[1773186813668,18.09758318,85.762,85.725,10.498]
[1773186815372,10.493,85.76,85.718,7.82724045]
[1773186815577,7.60458318,85.761,85.718,7.82724045]
[1773186816477,7.60458318,85.761,85.72,7.82724045]
[1773186817373,7.60458318,85.761,85.723,7.82724045]
[1773186818579,7.60458318,85.761,85.726,10.498]